bitfinex-derivatives/quotes_ETHF0:USTF0_20250107
["timestamp","ask_amount","ask_price","bid_price","bid_amount"]
[1736210262052,6.68229085,3685.5,3685.2,3.2078]
[1736210262254,2.967455,3686.0,3685.2,3.2078]
[1736210262450,0.27118,3685.9,3685.2,3.47902]
[1736210263147,3.238625,3686.0,3685.3,0.27122]
[1736210263551,2.967455,3686.0,3685.2,3.2078]
[1736210263759,2.967455,3686.0,3685.4,0.27121]
[1736210264444,2.967455,3686.0,3685.6,3.2078]
[1736210265653,5.742455,3686.4,3685.6,3.2078]
[1736210265853,6.013575,3686.8,3686.0,3.47897]
[1736210266159,6.67553752,3686.7,3686.0,3.2078]
[1736210266459,2.534655,3686.8,3686.2,0.27115]
[1736210266650,2.534655,3686.8,3686.0,3.2078]
[1736210266850,2.805775,3686.8,3686.1,0.27116]
[1736210268155,1.476,3687.0,3686.3,0.27114]
[1736210268457,1.7471,3687.0,3686.3,0.27114]
[1736210269248,1.7471,3687.0,3686.2,40.8]
[1736210269249,1.7471,3687.0,3686.5,3.2078]
[1736210269452,1.476,3687.0,3686.5,3.2078]
[1736210269655,1.7471,3687.0,3686.5,3.2078]
[1736210269960,1.476,3687.0,3686.5,3.2078]
[1736210270163,0.27111,3686.9,3686.2,40.8]
[1736210270362,0.27111,3686.8,3686.2,40.8]
[1736210270961,1.476,3687.0,3686.2,40.8]
[1736210271150,0.27106,3687.5,3686.7,0.27112]
[1736210271350,5.742455,3687.6,3686.7,0.27112]
[1736210271548,0.7411,3687.8,3687.0,0.27109]
[1736210271549,6.84959703,3687.5,3687.0,0.27109]
[1736210272063,2.805705,3687.6,3686.9,3.4789]
[1736210272358,6.82792253,3687.5,3686.9,3.2078]
[1736210272561,6.82792253,3687.5,3686.6,0.27112]
[1736210272757,2.534655,3687.2,3686.5,3.2078]
[1736210273357,6.78296359,3687.1,3686.5,3.2078]
[1736210273560,6.78296359,3687.1,3686.6,0.27113]
[1736210273759,2.534655,3687.2,3686.6,0.27113]
[1736210274765,0.27109,3687.1,3686.5,3.2078]
[1736210274965,3.569735,3687.2,3686.5,3.47893]
[1736210275166,3.298655,3687.2,3686.5,3.2078]
[1736210275467,0.7286,3687.4,3686.5,3.2078]
[1736210275671,0.27108,3687.3,3686.5,3.2078]
[1736210275858,6.68603468,3687.3,3686.5,3.2078]
[1736210276066,0.27109,3687.2,3686.5,3.47893]
[1736210276260,0.27109,3687.2,3686.5,3.2078]
[1736210276261,2.534655,3687.2,3686.5,3.2078]
[1736210276666,2.534655,3687.2,3686.7,0.27111]
[1736210277065,2.534655,3687.2,3686.5,3.2078]
[1736210277982,3.2078,3687.6,3686.5,3.2078]
[1736210278271,0.7807,3688.2,3688.0,0.27102]
[1736210278471,2.11878979,3688.4,3687.9,3.2078]
[1736210278672,2.11878979,3688.4,3688.1,0.27101]
[1736210278861,2.11878979,3688.4,3688.0,40.8]
[1736210279265,2.11878979,3688.4,3688.0,41.07102]
[1736210279778,2.11878979,3688.4,3688.1,0.27101]
[1736210280173,0.7288,3688.6,3688.0,40.8]
[1736210280884,0.7288,3688.6,3688.0,41.07102]
[1736210282090,0.7288,3688.6,3688.2,0.271]
[1736210282384,0.7288,3688.6,3688.0,41.07102]
[1736210282782,0.7288,3688.6,3688.1,0.27101]
[1736210282981,0.7288,3688.6,3688.0,40.8]
[1736210283187,0.7288,3688.6,3688.2,0.271]
[1736210283484,0.7288,3688.6,3688.1,0.27101]
[1736210284481,0.7288,3688.6,3688.0,41.07102]
[1736210284680,0.7288,3688.6,3688.1,0.27101]
[1736210286186,0.7288,3688.6,3688.0,40.8]
[1736210286383,0.7288,3688.6,3688.1,0.27102]
[1736210286589,0.7288,3688.6,3688.3,0.271]
[1736210287387,0.7288,3688.6,3688.2,0.271]
[1736210288686,0.7288,3688.6,3688.0,40.8]
[1736210288991,0.7288,3688.6,3688.3,0.271]
[1736210289176,0.7288,3688.6,3688.3,3.2078]
[1736210289382,0.7288,3688.6,3688.5,0.27099]
[1736210289578,2.15005214,3689.4,3688.3,3.2078]
[1736210289775,3.4787,3689.7,3688.8,3.2078]
[1736210289776,2.15005214,3689.1,3688.8,3.2078]
[1736210289989,2.15005214,3689.1,3688.7,0.27097]
[1736210290287,6.89114924,3689.0,3688.5,0.27098]
[1736210290480,6.89114924,3689.0,3688.4,3.2078]
[1736210290481,6.89114924,3689.0,3688.8,40.8]
[1736210290681,6.89114924,3689.0,3688.8,41.07096]
[1736210290882,2.15005214,3689.1,3688.8,40.8]
[1736210291986,2.15005214,3689.1,3688.8,41.07096]
[1736210292190,2.15005214,3689.1,3688.8,40.8]
[1736210292494,3.2078,3689.7,3689.5,0.27091]
[1736210292680,3.2078,3689.7,3688.8,40.8]
[1736210292681,2.15005214,3690.3,3689.0,3.2078]
[1736210292881,2.15005214,3690.3,3689.4,3.2078]
[1736210293079,6.82861256,3690.1,3689.7,0.2709]
[1736210293282,6.82861256,3690.2,3689.6,40.8]
[1736210293478,2.42091214,3690.3,3689.6,41.0709]
[1736210293690,6.82861256,3690.1,3689.6,40.8]
[1736210293992,0.27087,3690.1,3689.6,40.8]
[1736210294193,0.27086,3690.2,3689.6,40.8]
[1736210294600,6.94034881,3690.1,3689.6,41.0709]
[1736210294888,2.15005214,3690.3,3689.8,0.27089]
[1736210295193,2.15005214,3690.3,3689.7,0.2709]
[1736210295487,0.27086,3690.2,3689.6,40.8]
[1736210296582,2.15005214,3689.9,3689.6,40.8]
[1736210296789,2.15005214,3689.9,3689.4,3.2078]
[1736210296995,7.39850223,3689.8,3689.4,3.2078]
[1736210297198,0.2709,3689.7,3689.4,3.2078]
[1736210297393,7.66939223,3689.8,3689.4,3.2078]
[1736210297693,7.39850223,3689.8,3689.4,3.2078]
[1736210298685,2.15005214,3689.6,3689.4,3.2078]
[1736210298890,0.7715,3689.5,3689.4,3.2078]
[1736210299889,0.7715,3689.5,3689.2,0.27093]
[1736210300193,0.7715,3689.5,3689.3,0.27092]
[1736210300388,0.7715,3689.5,3688.8,3.2078]
[1736210300589,0.7715,3689.5,3689.2,0.27093]
[1736210301283,0.7715,3689.5,3688.8,3.2078]
[1736210301488,0.7715,3689.5,3689.0,0.27095]
[1736210301683,0.7715,3689.5,3689.2,0.27093]
[1736210302095,0.7402,3689.8,3688.8,3.2078]
[1736210302596,0.7402,3689.8,3689.4,0.27091]
[1736210303191,0.7402,3689.8,3689.5,0.27091]
[1736210303394,0.7402,3689.8,3689.4,0.27091]
[1736210303785,0.7402,3689.8,3688.8,3.2078]
[1736210303996,0.7402,3689.8,3689.2,0.27093]
[1736210304184,3.2078,3689.6,3688.8,3.2078]
[1736210304390,2.15005214,3689.0,3688.6,40.8]
[1736210305090,7.00439237,3688.9,3688.6,40.8]
[1736210305288,7.00439237,3688.9,3688.4,3.2078]
[1736210305289,2.15005214,3688.7,3688.4,3.2078]
[1736210305488,0.7334,3688.6,3687.8,3.9221]
[1736210305693,2.42106214,3688.3,3687.8,3.2078]
[1736210305994,2.42105214,3688.3,3687.9,40.8]
[1736210306386,3.2078,3688.4,3688.0,0.27102]
[1736210307389,3.90953214,3688.6,3688.1,0.27101]
[1736210307390,3.63855214,3688.6,3688.1,0.27101]
[1736210307691,0.7334,3688.6,3688.1,0.27101]
[1736210307891,0.7334,3688.6,3688.3,0.271]
[1736210308196,3.2078,3688.8,3688.0,0.7206]
[1736210308396,3.2078,3688.8,3688.7,0.27097]
[1736210308598,3.2078,3688.8,3688.0,1.455]
[1736210309099,3.2078,3688.8,3688.7,40.8]
[1736210309693,0.27095,3689.0,3688.7,40.8]
[1736210309893,2.15005214,3689.2,3688.7,40.8]
[1736210310297,0.27096,3688.8,3688.7,40.8]
[1736210310600,0.271,3688.3,3687.8,3.2078]
[1736210310990,0.27101,3688.3,3687.8,3.2078]
[1736210311193,0.27101,3688.3,3688.1,40.8]
[1736210311397,2.42105214,3688.4,3688.1,40.8]
[1736210312193,0.271,3688.3,3688.1,40.8]
[1736210312397,2.42105214,3688.4,3688.1,40.8]
[1736210312795,2.15005214,3688.4,3688.1,40.8]
[1736210313298,3.2078,3688.5,3688.1,40.8]
[1736210313801,2.42105214,3688.4,3688.1,40.8]
[1736210314499,2.15005214,3688.4,3688.1,40.8]
[1736210318101,2.15005214,3688.4,3688.1,41.07101]
[1736210318299,3.2078,3688.5,3688.1,40.8]
[1736210318597,3.2078,3688.5,3688.3,0.27099]
[1736210318801,3.70585214,3688.7,3688.1,40.8]
[1736210319001,3.70585214,3688.7,3688.2,0.271]
[1736210319599,3.70585214,3688.7,3688.1,40.8]
[1736210319897,2.42105214,3688.4,3688.1,40.8]
[1736210320101,0.271,3688.3,3687.8,3.2078]
[1736210320404,2.15005214,3687.9,3687.8,3.2078]
[1736210320591,2.15005214,3687.9,3687.8,44.0078]
[1736210320795,2.42108214,3687.9,3687.8,44.0078]
[1736210321093,2.42108214,3687.9,3687.8,40.8]
[1736210321697,3.19518214,3687.9,3687.8,40.8]
[1736210322288,2.92415214,3687.9,3687.8,40.8]
[1736210327803,3.19518214,3687.9,3687.8,40.8]
[1736210328203,0.27104,3687.8,3687.2,0.27108]
[1736210328404,1.00234,3687.8,3687.2,0.27108]
[1736210328613,6.82294801,3687.7,3687.3,40.8]
[1736210328803,2.15005214,3687.6,3687.3,40.8]
[1736210329605,2.15005214,3687.6,3687.3,41.07107]
[1736210330407,0.7313,3687.8,3687.3,41.07107]
[1736210330806,6.80472684,3687.7,3687.3,41.07107]
[1736210331005,6.80472684,3687.7,3687.3,40.8]
[1736210331213,0.27107,3687.4,3686.9,4.18385821]
[1736210331398,2.42112214,3687.3,3686.9,4.18385821]
[1736210331605,2.15005214,3687.3,3686.9,4.45495821]
[1736210331803,2.15005214,3687.3,3687.0,40.8]
[1736210332603,2.15005214,3687.3,3687.0,41.07109]
[1736210332809,2.15005214,3687.3,3687.0,40.8]
[1736210334714,2.42113214,3687.3,3687.0,40.8]
[1736210335005,2.15005214,3687.3,3687.0,40.8]
[1736210335211,10.62952202,3687.2,3686.4,3.47894]
[1736210335410,2.15005214,3686.9,3686.4,3.47894]
[1736210335614,2.15005214,3686.9,3686.5,0.27113]
[1736210335906,2.15005214,3686.9,3686.6,40.8]
[1736210336506,2.15005214,3686.9,3686.6,41.07113]
[1736210336705,2.15005214,3686.9,3686.6,40.8]
[1736210337113,2.15005214,3686.9,3686.6,41.07112]
[1736210337314,7.12013214,3687.2,3686.6,41.07112]
[1736210337708,6.88075703,3687.1,3686.6,40.8]
[1736210337921,6.55885214,3687.6,3686.7,3.2078]
[1736210338113,6.82990214,3687.6,3687.1,0.27108]
[1736210338311,6.66448027,3687.5,3687.1,0.27108]
[1736210338814,3.2078,3687.6,3687.3,0.27107]
[1736210339010,3.2078,3687.6,3686.7,3.2078]
[1736210339216,3.2078,3687.6,3687.2,0.27108]
[1736210339514,3.2078,3687.6,3686.7,3.2078]
[1736210339716,5.35785214,3687.6,3686.8,0.27111]
[1736210339915,5.62891214,3687.6,3687.1,0.27109]
[1736210340319,0.27106,3687.5,3687.0,0.27109]
[1736210340519,2.15005214,3687.3,3686.6,40.8]
[1736210340717,2.15005214,3687.0,3686.6,40.8]
[1736210340915,2.15005214,3686.7,3686.6,40.8]
[1736210341218,2.42117214,3686.7,3686.6,40.8]
[1736210341718,3.47888,3687.3,3686.8,0.2711]
[1736210341913,3.2078,3687.3,3686.9,0.2711]
[1736210342621,3.2078,3687.3,3686.7,1.5226]
[1736210342622,3.2078,3687.3,3687.0,0.2711]
[1736210343216,3.2078,3687.3,3686.7,1.5226]
[1736210343722,3.2078,3687.3,3686.9,0.2711]
[1736210343919,2.15005214,3687.0,3686.6,41.07112]
[1736210344113,5.35785214,3687.3,3686.6,40.8]
[1736210344315,3.2078,3687.3,3687.1,0.27108]
[1736210344531,2.15005214,3687.6,3687.1,0.27108]
[1736210344718,2.15005214,3687.6,3686.6,40.8]
[1736210344719,2.15005214,3687.6,3687.2,0.27108]
[1736210344919,3.2078,3687.7,3687.2,0.27108]
[1736210345120,3.2078,3687.7,3686.6,40.8]
[1736210345326,3.2078,3687.7,3687.5,0.27105]
[1736210345515,3.2078,3687.7,3687.6,0.27105]
[1736210346119,3.2078,3687.7,3687.5,0.27105]
[1736210348524,3.2078,3687.7,3687.3,0.7748]
[1736210348823,3.2078,3687.7,3687.4,0.27106]
[1736210349316,3.2078,3687.7,3687.3,0.7748]
[1736210349523,3.2078,3687.7,3687.4,0.27107]
[1736210350220,3.2078,3687.7,3687.3,0.7748]
[1736210350418,0.27105,3687.6,3687.1,0.7294]
[1736210350618,0.27107,3687.5,3687.1,0.7294]
[1736210350921,0.27107,3687.3,3687.0,4.18385821]
[1736210351122,0.27106,3687.5,3687.0,4.18385821]
[1736210351419,0.27109,3687.1,3687.0,4.18385821]
[1736210352322,5.35785214,3687.3,3686.6,40.8]
[1736210352323,7.47664193,3687.3,3686.6,40.8]
[1736210352513,0.2711,3687.0,3686.6,40.8]
[1736210352713,0.2711,3687.1,3686.6,40.8]
[1736210352915,0.27108,3687.2,3686.6,40.8]
[1736210353121,0.27109,3687.1,3686.6,40.8]
[1736210353719,0.27112,3686.7,3686.3,4.18385821]
[1736210354019,0.7622,3686.6,3686.3,4.18385821]
[1736210354222,2.15005214,3686.4,3686.3,4.18385821]
[1736210354418,2.15005214,3686.4,3686.2,6.27578731]
[1736210354623,0.27115,3686.3,3686.2,6.27578731]
[1736210355124,7.04902024,3686.3,3686.2,6.27578731]
[1736210355322,7.04902024,3686.3,3686.2,5.09598731]
[1736210355721,7.04902024,3686.3,3685.0,3.9271]
[1736210355722,6.77787024,3686.3,3685.4,5.09598731]
[1736210355919,2.15005214,3685.7,3685.4,5.09598731]
[1736210356419,6.6803472,3685.6,3685.4,5.09598731]
[1736210356822,6.6803472,3685.8,3685.4,5.09598731]
[1736210357223,2.15005214,3685.7,3685.4,5.09598731]
[1736210357416,2.15005214,3685.7,3685.1,0.27123]
[1736210357726,2.42124214,3685.7,3685.0,3.9271]
[1736210358232,6.66485577,3685.6,3685.0,3.9271]
[1736210358526,0.27121,3685.5,3685.0,3.9271]
[1736210359426,8.08935577,3685.6,3685.0,3.9271]
[1736210359722,0.709,3685.6,3685.0,3.9271]
[1736210359924,3.2078,3685.9,3685.0,3.9271]
[1736210359925,3.2078,3685.9,3685.6,0.2712]
[1736210360121,3.54328979,3686.2,3685.7,41.515]
[1736210361928,1.4245,3686.2,3685.7,41.515]
[1736210362124,1.69566,3686.2,3685.7,41.515]
[1736210362433,1.4245,3686.2,3685.7,41.515]
[1736210362623,0.27116,3686.1,3685.7,41.515]
[1736210363027,1.69566,3686.2,3685.7,41.515]
[1736210363325,1.4245,3686.2,3685.7,41.515]
[1736210364126,2.15005214,3686.3,3685.7,41.515]
[1736210364320,3.2078,3686.4,3685.7,41.515]
[1736210364721,3.2078,3686.4,3685.7,41.78619]
[1736210364722,3.47894,3686.4,3685.7,41.78619]
[1736210365027,0.27116,3686.2,3685.7,41.515]
[1736210365519,2.15005214,3686.3,3685.7,41.515]
[1736210365520,0.27118,3685.9,3685.7,41.515]
[1736210365725,0.27118,3685.9,3685.4,3.2078]
[1736210365726,0.27119,3685.8,3685.1,0.27123]
[1736210366035,0.27119,3685.8,3685.0,0.7193]
[1736210366036,5.35785214,3686.0,3685.2,1.01772]
[1736210366230,0.27119,3685.8,3685.3,40.8]
[1736210367127,8.21754408,3685.9,3685.3,40.8]
[1736210367334,8.21754408,3685.9,3685.3,41.07122]
[1736210367635,8.48872408,3685.9,3685.3,40.8]
[1736210367934,0.27118,3685.8,3685.3,40.8]
[1736210368425,3.2078,3685.6,3685.3,40.8]
[1736210368620,0.27121,3685.5,3685.3,40.8]
[1736210368824,0.27122,3685.4,3685.0,0.7193]
[1736210369228,0.27122,3685.4,3685.1,40.8]
[1736210369430,6.77183293,3685.5,3685.1,40.8]
[1736210369737,0.27122,3685.4,3685.1,40.8]
[1736210370034,0.27122,3685.4,3685.0,0.7193]
[1736210371127,0.27122,3685.3,3685.0,0.7193]
[1736210371731,0.27123,3685.2,3685.0,0.7193]
[1736210371926,6.77183293,3685.5,3684.6,0.7255]
[1736210372231,0.27127,3684.7,3684.5,3.2078]
[1736210372431,2.15005214,3684.8,3684.0,3.2078]
[1736210372432,0.27129,3684.5,3684.0,3.2078]
[1736210372632,0.27129,3684.5,3683.9,0.7095]
[1736210372633,2.15005214,3684.5,3683.9,0.7095]
[1736210372932,0.2713,3684.3,3683.9,0.7095]
[1736210373236,3.2078,3684.4,3683.9,0.7095]
[1736210373731,3.47909,3684.4,3683.9,0.7095]
[1736210374330,0.2713,3684.3,3683.9,0.7095]
[1736210374629,3.2078,3684.4,3683.9,0.7095]
[1736210374835,0.27129,3684.3,3683.9,0.7095]
[1736210375537,2.15005214,3684.2,3683.9,0.7095]
[1736210378030,3.2078,3684.4,3683.9,0.7095]
[1736210378230,3.2078,3684.4,3683.9,0.98082]
[1736210378430,5.06723642,3685.8,3684.0,3.2078]
[1736210378431,2.15005214,3685.1,3684.0,3.2078]
[1736210378626,0.27124,3685.0,3684.6,40.8]
[1736210378835,6.77616907,3684.9,3684.6,40.8]
[1736210379036,6.77616907,3685.0,3684.7,1.5118]
[1736210379236,2.15005214,3685.1,3684.7,1.5118]
[1736210380230,3.2078,3685.3,3684.7,1.5118]
[1736210380231,2.15005214,3684.8,3684.7,1.5118]
[1736210380432,0.27127,3684.7,3684.6,40.8]
[1736210380644,0.7629,3684.7,3683.7,1.4871]
[1736210380831,2.15005214,3684.2,3683.7,1.4871]
[1736210381030,2.15005214,3684.2,3683.8,40.8]
[1736210381234,2.42135214,3684.2,3683.8,40.8]
[1736210382139,2.15005214,3684.2,3683.8,40.8]
[1736210382536,2.42135214,3684.2,3683.8,40.8]
[1736210382828,0.27131,3684.1,3683.8,40.8]
[1736210383038,2.42135214,3684.2,3683.8,40.8]
[1736210383431,2.15005214,3683.9,3683.8,40.8]
[1736210385331,8.77885341,3683.9,3683.2,0.7774]
[1736210385539,8.77885341,3683.9,3683.2,1.04877]
[1736210385540,0.27134,3683.8,3683.2,1.04877]
[1736210385731,0.27136,3683.5,3683.1,1.4868]
[1736210386236,0.27135,3683.5,3683.1,1.4868]
[1736210386636,2.15005214,3683.3,3683.0,40.8]
[1736210386932,3.2078,3683.1,3682.2,1.5418]
[1736210387131,2.15005214,3682.6,3682.2,1.5418]
[1736210387335,2.15005214,3682.6,3682.3,40.8]
[1736210387527,6.83659089,3682.5,3682.3,40.8]
[1736210388337,0.27127,3684.7,3684.1,0.27131]
[1736210388545,3.12785302,3684.3,3684.2,0.7341]
[1736210388932,5.87952131,3684.3,3684.2,41.5341]
[1736210389233,3.12785302,3684.3,3684.2,41.8054]
[1736210389637,3.12785302,3684.3,3684.2,41.5341]
[1736210390135,3.12785302,3684.3,3684.2,41.8054]
[1736210390538,0.27124,3685.0,3684.4,0.27129]
[1736210391142,2.75166829,3684.5,3684.3,0.27129]
[1736210391330,2.75166829,3684.4,3684.3,0.27129]
[1736210394139,3.2078,3685.3,3684.2,41.5341]
[1736210394443,2.75166829,3684.9,3684.8,0.27126]
[1736210397642,0.7595,3685.4,3684.5,3.2078]
[1736210397839,0.7595,3685.4,3684.2,44.07931713]
[1736210397840,2.75166829,3685.1,3685.0,3.47904]
[1736210398037,2.75166829,3685.5,3685.4,0.27121]
[1736210398238,2.75166829,3685.5,3685.4,3.47901]
[1736210398642,2.75166829,3685.5,3685.4,44.27901]
[1736210398845,2.75166829,3685.5,3685.4,44.0078]
[1736210399344,2.75166829,3685.5,3685.4,3.2078]
[1736210401743,3.48156829,3685.5,3685.4,3.2078]
[1736210404749,3.48156829,3685.5,3684.9,44.0078]
[1736210404750,12.94456104,3685.5,3684.9,44.0078]
[1736210404952,2.75166829,3685.0,3684.9,3.2078]
[1736210406943,2.75166829,3685.0,3684.6,40.8]
[1736210407153,0.27128,3684.5,3684.4,3.2078]
[1736210407346,3.02294829,3684.5,3684.4,3.2078]
[1736210407654,3.02294829,3684.5,3683.6,1.02654]
[1736210407655,0.2713,3684.2,3684.0,3.2078]
[1736210407947,2.75166829,3683.7,3683.6,3.2078]
[1736210408147,2.75166829,3683.7,3683.2,0.7848]
[1736210408148,2.75166829,3683.7,3683.2,3.2078]
[1736210408354,0.27132,3684.0,3683.3,0.27137]
[1736210408749,2.75166829,3683.4,3683.2,3.47917]
[1736210408944,2.75166829,3683.3,3683.2,3.47917]
[1736210409146,9.64085617,3683.3,3683.2,3.2078]
[1736210409351,0.27138,3683.2,3683.1,49.18232474]
[1736210409551,4.52794829,3683.2,3683.1,40.8]
[1736210409854,11.17794756,3683.2,3683.1,40.8]
[1736210410041,10.90656756,3683.2,3682.8,3.2078]
[1736210410247,2.75166829,3682.9,3682.8,3.2078]
[1736210410541,0.27141,3682.8,3682.5,40.8]
[1736210410743,2.75166829,3682.5,3682.4,8.38232474]
[1736210411053,2.75166829,3682.5,3682.1,3.2078]
[1736210411244,0.27142,3682.7,3682.1,3.2078]
[1736210411245,2.75166829,3682.2,3682.1,3.2078]
[1736210411641,2.75166829,3682.2,3682.1,44.0078]
[1736210411848,2.75166829,3682.2,3682.1,3.2078]
[1736210413449,9.54977838,3682.2,3682.1,3.2078]
[1736210413756,2.75166829,3682.2,3682.1,3.2078]
[1736210415453,0.27141,3682.7,3682.1,3.2078]
[1736210415658,2.75166829,3682.4,3682.1,3.2078]
[1736210415858,2.75166829,3682.2,3682.1,3.2078]
[1736210417344,11.8973742,3682.2,3682.1,3.2078]
[1736210417547,13.8827242,3682.2,3681.6,3.2078]
[1736210417751,2.15702696,3681.9,3681.6,3.2078]
[1736210417949,2.15702696,3681.9,3681.2,3.2078]
[1736210417950,2.75166829,3681.7,3681.2,3.2078]
[1736210418261,2.15702696,3681.5,3681.2,3.2078]
[1736210418451,2.75166829,3681.3,3681.2,3.2078]
[1736210418657,2.75166829,3681.3,3680.8,3.2078]
[1736210418956,2.75166829,3680.9,3680.8,3.2078]
[1736210419358,2.75166829,3680.9,3680.8,3.47935]
[1736210419767,2.15702696,3681.8,3680.8,3.2078]
[1736210419947,2.75166829,3681.6,3681.3,0.27152]
[1736210420150,2.75166829,3681.6,3681.2,3.2078]
[1736210420452,2.75166829,3681.6,3681.2,3.47932]
[1736210420652,2.75166829,3681.6,3681.2,3.2078]
[1736210420854,2.75166829,3681.6,3681.4,0.27151]
[1736210421062,2.75166829,3681.6,3681.5,0.2715]
[1736210421562,0.7769,3682.2,3681.7,0.27148]
[1736210421855,2.75166829,3682.1,3681.9,3.47927]
[1736210422060,4.34487869,3682.8,3682.0,0.27146]
[1736210422249,0.7311,3682.9,3682.7,3.2078]
[1736210422447,2.75166829,3682.8,3682.7,3.2078]
[1736210423454,3.02307829,3682.8,3682.7,3.2078]
[1736210423758,2.75166829,3682.8,3682.7,3.2078]
[1736210432460,2.75166829,3682.8,3682.7,3.47921]
[1736210433364,5.30103698,3682.8,3682.7,3.2078]
[1736210434661,5.57244698,3682.8,3682.7,3.2078]
[1736210434862,12.3014168,3682.8,3682.7,3.2078]
[1736210435366,12.0300068,3682.8,3682.1,44.7785]
[1736210435556,2.75166829,3682.2,3682.1,44.7785]
[1736210437363,2.75166829,3682.2,3682.1,44.0078]
[1736210437560,0.27148,3681.9,3681.7,3.2078]
[1736210437764,2.82084869,3681.9,3681.7,3.2078]
[1736210438071,2.75166829,3681.8,3681.7,3.2078]
[1736210440365,3.02314829,3681.8,3681.7,3.2078]
[1736210440563,5.30103698,3681.8,3681.5,40.8]
[1736210440767,3.02315829,3681.6,3681.5,40.8]
[1736210440962,0.27152,3681.2,3680.6,3.2078]
[1736210441272,2.75166829,3680.8,3680.6,3.2078]
[1736210441567,2.75166829,3680.8,3680.7,40.8]
[1736210442073,2.54936869,3681.4,3680.7,40.8]
[1736210442266,2.75166829,3681.0,3680.7,40.8]
[1736210443860,2.75166829,3680.9,3680.7,40.8]
[1736210444964,2.75166829,3680.8,3680.7,40.8]
[1736210446570,3.02321829,3680.8,3680.7,40.8]
[1736210446870,2.75166829,3680.8,3680.7,40.8]
[1736210449659,1.5411,3681.7,3680.7,40.8]
[1736210449863,2.75166829,3681.3,3681.2,3.2078]
[1736210450063,2.75166829,3681.5,3681.2,3.9768]
[1736210450268,2.75166829,3681.7,3681.2,3.9768]
[1736210450471,2.75166829,3681.8,3681.7,0.27149]
[1736210450672,2.75166829,3681.8,3681.6,3.2078]
[1736210450673,2.75166829,3681.8,3681.6,3.47929]
[1736210451368,2.75166829,3681.8,3681.6,3.2078]
[1736210451969,3.02315829,3681.7,3681.6,3.2078]
[1736210452272,3.02315829,3681.7,3681.3,40.8]
[1736210452273,0.2715,3681.5,3681.3,40.8]
[1736210452465,3.02317829,3681.4,3681.3,40.8]
[1736210452771,2.15837482,3681.9,3681.3,40.8]
[1736210452772,2.75166829,3681.5,3681.3,40.8]
[1736210453871,0.27148,3681.8,3681.3,40.8]
[1736210454072,2.15837482,3682.2,3681.7,3.2078]
[1736210454073,0.27148,3681.9,3681.7,3.2078]
[1736210454574,2.75166829,3681.8,3681.7,3.2078]
[1736210454875,3.02314829,3681.8,3681.7,3.2078]
[1736210455063,2.15837482,3681.9,3681.3,44.0078]
[1736210455370,2.15837482,3681.9,3681.3,3.2078]
[1736210455371,3.02317829,3681.4,3681.3,3.2078]
[1736210455573,0.27152,3681.3,3681.0,6.36457892]
[1736210455775,2.75166829,3681.1,3681.0,6.36457892]
[1736210455967,3.02319829,3681.1,3681.0,6.36457892]
[1736210456575,0.27155,3680.9,3680.8,3.2078]
[1736210456772,3.02321829,3680.9,3680.8,3.2078]
[1736210457174,2.75166829,3680.9,3680.8,3.2078]
[1736210457473,3.02321829,3680.9,3680.8,3.2078]
[1736210458976,2.75166829,3680.9,3680.8,3.2078]
[1736210459670,0.785,3681.4,3680.8,3.2078]
[1736210459866,2.75166829,3681.2,3681.1,0.27153]
[1736210460072,2.75166829,3681.5,3681.1,3.2078]
[1736210460277,2.10948016,3681.6,3681.4,0.2715]
[1736210460481,2.10948016,3681.6,3681.5,44.0078]
[1736210460780,2.38097016,3681.6,3681.5,44.0078]
[1736210460982,2.75166829,3681.6,3681.5,44.2793]
[1736210461475,2.75166829,3681.6,3681.5,44.0078]
[1736210461676,2.10948016,3682.2,3682.0,0.27146]
[1736210461975,0.27144,3682.4,3682.1,3.2078]
[1736210462283,2.75166829,3682.3,3682.1,3.47925]
[1736210462483,2.75166829,3682.3,3682.2,0.27145]
[1736210462779,2.75166829,3682.3,3682.2,0.7585]
[1736210463172,2.75166829,3682.3,3682.2,1.02995]
[1736210463373,0.27141,3682.8,3682.3,0.27144]
[1736210463578,3.29611039,3682.9,3682.5,3.2078]
[1736210463776,0.27141,3682.8,3682.5,3.2078]
[1736210463977,2.75166829,3682.6,3682.5,3.2078]
[1736210465181,2.75166829,3682.6,3682.5,3.47923]
[1736210465581,0.05,3683.4,3682.5,3.2078]
[1736210465778,2.75166829,3682.9,3682.7,0.27141]
[1736210466086,2.75166829,3682.9,3682.8,40.8]
[1736210466585,0.05,3683.4,3683.0,0.27139]
[1736210466778,2.75166829,3683.3,3683.1,0.722]
[1736210467280,2.75166829,3683.2,3683.1,0.722]
[1736210467778,2.75166829,3683.2,3683.1,0.99338]
[1736210467974,2.75166829,3683.2,3683.1,0.722]
[1736210468583,2.75166829,3683.2,3682.9,3.2078]
[1736210468788,2.75166829,3683.1,3682.9,3.2078]
[1736210468989,2.75166829,3683.1,3682.9,3.4792]
[1736210469684,2.75166829,3683.1,3682.9,3.2078]
[1736210469886,2.75166829,3683.1,3683.0,0.27139]
[1736210470082,2.75166829,3683.1,3683.0,1.02359]
[1736210470487,2.75166829,3683.1,3683.0,41.82359]
[1736210470882,2.75166829,3683.1,3683.0,40.8]
[1736210471189,0.27139,3683.0,3682.9,3.2078]
[1736210471387,4.53265829,3683.0,3682.9,3.2078]
[1736210471580,4.26126829,3683.0,3682.9,3.2078]
[1736210472282,2.75166829,3683.0,3682.9,3.4792]
[1736210472487,2.59861039,3683.7,3683.3,0.27137]
[1736210472691,2.59861039,3683.7,3683.3,3.2078]
[1736210472880,2.75166829,3683.4,3683.3,3.2078]
[1736210473985,2.75166829,3683.4,3683.3,44.0078]